Workbook

Sheet Instructions (hidden)
B1: STEPS TO CREATE DONOR BUDGET
A2: 1 | B2: Budget sheet - Appropriate budget should be in the Budget sheet.
A3: 2 | B3: Program Implementation Detail Sheet - steps 1-3, 5 in column J.
A4: 3 | B4: Total Program Implementation Costs (details) and Total Administrative costs (details) will be calculated authomatically (suggestions).
A5: 4 | B5: All calculations made in point 3 of this instruction will be indicated in the Detailed Budget sheet authomatically.
A6: 5 | B6: You should not change Administrative costs (point 8-12 in Detailed Budget Sheet).
A7: 6 | B7: You should not change Program Operating Costs (point 6 and 7 in Detailed Budget Sheet) and Program Fringe Benefits (point 2.2 in Detailed Budget).
A8: 7 | B8: Point 2.1.1 in Detailed Budget will be suggested authomatically.
A9: 8 | B9: To estimate Grant Awards please use Grant Worksheet.
A10: 9 | B10: Please determine Program Officer and Grant Manager for this project in section 2.1.
A11: 10 | B11: Consultants costs (3.0) will be suggested authomatically. You can change it if needed.
A12: 11 | B12: To estimate Travel & Meeting Costs please use Travel Budget sheet.
A13: 12 | B13: Please estimate Program Outreach and make changes if needed.
A14: 13 | B14: Summary Budget Sheet is linked to Detailed Budget.
A15: 14 | B15: Please discuss the budget with donor and get money!

Sheet ПРЕМИЯ
A1: ПРИМЕРНАЯ СМЕТА РАСХОДОВ НА ПРЕМИЮ ФОНДА САНЖАРБЕКА ДАНИЯРОВА Победителю (1-е место)
A2: Культурно-познавательная поездка в Москву на 10 дней в сопровождении руководителя проекта
A3: 10-дневная культурно-познавательная поездка в Москву | B3: ед. измерения | C3: цена за ед. | D3: кол-во ед. | E3: Сумма оценочно | F3: Сумма за вычетом натур. вклада | G3: Комментарии
A4: Статья расходов | C4: РУБ | E4: РУБ | F4: РУБ | G4: 1 СОМ = 1.18 РУБ
G5: Курс на 10.04.2018
A6: Транспортные расходы
A7: Авиабилет туда и обратно Победителю и сопровождающему | B7: билеты | C7: 20000 | D7: 2 | E7: =D7*C7 -> 40000 | F7: =E7 -> 40000 | G7: Экономический класс
A8: Трансфер из аэропорта и в аэропорт на аэроэкспрессе | B8: билеты | C8: 420 | D8: 4 | E8: =D8*C8 -> 1680 | F8: =E8 -> 1680 | G8: 2 пассажира туда и обратно
A9: Трансфер на такси от вокзала (от Аэроэкспресса) и обратно | B9: поездка | C9: 500 | D9: 2 | E9: =D9*C9 -> 1000 | F9: 1000
A10: Проезд на метро 10 дней (билет 40 поездок) | B10: 10 дней | C10: 1300 | D10: 2 | E10: =D10*C10 -> 2600 | F10: 1300 | G10: Сопровождающий - пенс. льгота
A11: Питание и проживание
A12: Суточные (питание) Победителя | B12: день | C12: 600 | D12: 10 | E12: =D12*C12 -> 6000 | F12: 6000 | G12: 3 раза в день
A13: Проживание оценочно (в квартире Учредителя Фонда) | B13: сутки | C13: 3000 | D13: 10 | E13: =D13*C13 -> 30000 | G13: Оценочно. Безвозмездно
A14: Культурная программа
A15: Опера (Большой или Станиславского и Немировича-Данченко) | B15: билеты | C15: 2500 | D15: 2 | E15: =D15*C15 -> 5000 | F15: 5000 | G15: Оценочно. Может быть дешевле и дороже
A16: Балет (Большой или Станиславского и Немировича-Данченко) | B16: билеты | C16: 4000 | D16: 2 | E16: 8000 | F16: 8000 | G16: Оценочно. Может быть дешевле и дороже
A17: Спектакль драматический (два театра) | B17: билеты | C17: 2500 | D17: 4 | E17: 10000 | F17: 10000 | G17: Оценочно. Может быть дешевле и дороже
A18: Концерт ММДМ или зал Чайковского или Консерватория | B18: билеты | C18: 2000 | D18: 2 | E18: 4000 | F18: 4000 | G18: Оценочно. Может быть дешевле и дороже
A19: Цирк на Цветном бульваре или на Вернадского | B19: билеты | C19: 3000 | D19: 2 | E19: =D19*C19 -> 6000 | F19: =E19 -> 6000 | G19: Оценочно. Может быть дешевле и дороже
A20: Кремль, территория и ансамбль соборов | B20: билеты | C20: 750 | D20: 2 | E20: 1500 | F20: 1500 | G20: Пенс. льгота у сопровождающего
A21: Кремль, Оружейная Палата | B21: билеты | C21: 700 | D21: 2 | E21: 1400 | F21: 1400 | G21: Пенс. льгота у сопровождающего
A22: Музей ИЗО им. А С Пушкина (Основное здание) | B22: билеты | C22: 400 | D22: 2 | E22: 800 | F22: 800 | G22: Пенс. льгота у сопровождающего
A23: Музей ИЗО им. А С Пушкина (шедевры европейской живописи) | B23: билеты | C23: 400 | D23: 2 | E23: 800 | F23: 800 | G23: Пенс. льгота у сопровождающего
A24: Третьяковская галерея (русское изобразительное искусство) | B24: билеты | C24: 300 | D24: 2 | E24: 600 | F24: 600 | G24: Пенс. льгота у сопровождающего
A25: Прогулка по Москва реке на катере от гостиницы Украина-Рэдиссон | B25: билеты | C25: 900 | D25: 2 | E25: 1800 | F25: 1800
A26: Подмосковная усадьба (Архангельское, Поленово или др.) | B26: билеты | C26: 200 | D26: 2 | E26: 400 | F26: 400
A27: Клуб, например, джаз | B27: билеты+ужин | C27: 1500 | D27: 2 | E27: 3000 | F27: 3000
A28: Другие места (картинные галереи, парки, усадьбы, музеи) | B28: билеты | C28: 500 | D28: 4 | E28: 2000 | F28: 2000
A29: Прогулка на авто по центру вечернего города | B29: поездка | C29: 3000 | D29: 1 | E29: 3000 | F29: 3000
A30: Ужин в ресторане | B30: гость | C30: 2000 | D30: 2 | E30: 4000 | F30: 4000
A31: Итого | E31: =SUM(E7:E30) -> 133580 | F31: =SUM(F7:F30) -> 102280
A32: Налоги подоходный и соц. (22,2%) | E32: =(E12+E13+#REF!-1680)*22.2% ->  | F32: =(#REF!-1680)*22.2% -> 
A33: ВСЕГО | E33: =SUM(E32:E32) ->  | F33: =SUM(F32:F32) -> 

Sheet Detailed Budget (hidden)
C2: CATEGORY | D2: LINE ITEM | E2: DETAIL | F2: LOE | G2: LOE | H2: Unit | I2: Quantity | J2: Cost/Unit | K2: Total | M2: Total (first year) | N2: Donor 1 (first year) | O2: EFCA (first year) | Q2: Total (second year) | R2: Donor 1 (second year) | S2: EFCA (second year)
C3: PROGRAM IMPLEMENTATION (DIRECT COSTS) | F3: for first year | G3: for second year
B4: C3 | C4: Grant awards | D4: 1.0
A5: 50001 | B5: GP | C5: (To be determined) | D5: 1.1 | E5: Grants- Public Admin/Policy | M5: =N5+O5 -> 5000 | N5: 5000 | Q5: =R5+S5 -> 5000 | R5: 5000
A6: 50002 | B6: GP | D6: 1.2 | E6: Grants- Civil Society | M6: =N6+O6 -> 0 | Q6: =R6+S6+T6 -> 0
A7: 50003 | B7: GP | D7: 1.3 | E7: Grants-Private Enterprise Development | M7: =N7+O7 -> 0 | Q7: =R7+S7+T7 -> 0
C9: Total grants | K9: =M9+Q9 -> 10000 | M9: =N9+O9 -> 5000 | N9: =SUM(N5:N7) -> 5000 | O9: =SUM(O5:O7) -> 0 | Q9: =R9+S9+T9 -> 5000 | R9: =SUM(R5:R7) -> 5000 | S9: =SUM(S5:S7) -> 0
A11: 51002 | C11: Personnel Costs | D11: 2.1
B12: GP except CD, CD (50% GP, 50% AD) | D12: 2.1.1 | E12: Program Officer | F12: 0.3 | G12: 0.25 | H12: person | I12: 1 | M12: =N12+O12 ->  | N12: =(#REF!+#REF!+#REF!)/10*'Detailed Budget '!F12 ->  | Q12: =R12+S12 ->  | R12: =(#REF!+#REF!+#REF!)/10*'Detailed Budget '!G12 -> 
D13: 2.1.2 | E13: Grant and Contract Manager | F13: 0.1 | G13: 0.1 | H13: person | I13: 1 | M13: =N13+O13 ->  | N13: =(#REF!+#REF!+#REF!)/10*'Detailed Budget '!F13 ->  | Q13: =R13+S13 ->  | R13: =(#REF!+#REF!+#REF!)/10*'Detailed Budget '!G13 -> 
D14: 2.1.3 | E14: Program Assistant | F14: 0.15 | G14: 0.2 | H14: person | I14: 1
C16: Total Salaries Program staff | M16: =SUM(M12:M14) ->  | N16: =SUM(N12:N14) ->  | O16: =SUM(O12:O14) -> 0 | Q16: =SUM(Q12:Q14) ->  | R16: =SUM(R12:R14) ->  | S16: =SUM(S12:S14) -> 0
C18: Fringe Benefits | D18: 2.2
A19: 51070 | B19: GP except CD, CD (50% GP, 50% AD) | C19: (To be determined) | D19: 2.2.1 | E19: Fringe Benefits for PO and GCM (Social Tax - 11%) | F19: 0.11 | G19: 0.11 | H19: PO and GCM Salary | M19: =N19+O19 ->  | N19: =(N12+N13)*F19 ->  | Q19: =R19+S19 ->  | R19: =(R12+R13)*G19 -> 
D20: 2.2.2 | E20: Fringe Benefits for Support Staff (Social Tax - 11%) | F20: 0.11 | G20: 0.11 | H20: Support Staff Salary | N20: =#REF!*F20 ->  | R20: =#REF!*G20 -> 
D21: 2.2.3 | E21: Fringe Benefits for PO and GCM (Lunches ) | F21: 0.15 | G21: 0.1 | H21: 1 per per year | I21: 2 | J21: =#REF! ->  | N21: =$J21*$I21*F21 ->  | R21: =$J21*$I21*G21 -> 
D22: 2.2.4 | E22: Fringe Benefits for Support Staff (Lunches ) | F22: 0.15 | G22: 0.1 | H22: 1 prog pers per year | I22: 2 | J22: =#REF! ->  | N22: =$J22*$I22*F22 ->  | R22: =$J22*$I22*G22 -> 
D23: 2.2.5 | E23: Fringe Benefits for PO and GCM (Health Insurance) | F23: 0.15 | G23: 0.1 | H23: 1 per per year | I23: 2 | J23: =#REF! ->  | N23: =$J23*$I23*F23 ->  | R23: =$J23*$I23*G23 -> 
D24: 2.2.6 | E24: Fringe Benefits for Support Staff (Health Insurance) | F24: 0.15 | G24: 0.1 | H24: 1 prog pers per year | I24: 2 | J24: =#REF! ->  | N24: =$J24*$I24*F24 ->  | R24: =$J24*$I24*G24 -> 
C26: Total Fringe Benefits | M26: =N26+O26 ->  | N26: =SUM(N19:N24) ->  | O26: =SUM(O18:O23) -> 0 | Q26: =R26+S26+T26 ->  | R26: =SUM(R19:R24) ->  | S26: =SUM(S18:S23) -> 0
C27: Total Personnel Costs (2.1+2.2) | K27: =M27+Q27 ->  | M27: =N27+O27 ->  | N27: =N16+N26 ->  | O27: =O16+O26 -> 0 | Q27: =Q16+Q26 ->  | R27: =R16+R26 ->  | S27: =S16+S26 -> 0
C29: Travel & Meeting | D29: 3.0
A30: 52001 | C30: (To be determined) | D30: 3.1 | E30: Travel Transportation (Staff, site visits) - first year | F30: 2 | H30: persons | I30: 2 | J30: 420 | M30: =N30+O30 -> 1680 | N30: =$J30*$I30*$F30 -> 1680
A31: 52002 | D31: 3.2 | E31: Travel Related (Staff, site visits) - first year | F31: 2 | H31: days | I31: 5 | J31: 50 | M31: =N31+O31 -> 500 | N31: =$J31*$I31*$F31 -> 500
A32: 52015 | D32: 3.3 | E32: Participated Travel Transportation - first year | F32: 2 | H32: fly (to and from) per person | I32: 2 | J32: 300 | M32: =N32+O32 -> 1200 | N32: =$J32*$I32*$F32 -> 1200
A33: 52016 | D33: 3.4 | E33: Participated Travel Related - first year | F33: 2 | H33: days | I33: 5 | J33: 60 | M33: =N33+O33 -> 600 | N33: =$J33*$I33*$F33 -> 600
D34: 3.5 | E34: Travel Transportation (Staff, site visits) - second year | F34: 2 | H34: persons | I34: 2 | J34: 420 | Q34: =R34+S34 -> 1680 | R34: =$J34*$I34*$F34 -> 1680
D35: 3.6 | E35: Travel Related (Staff, site visits) - second year | F35: 2 | H35: days | I35: 5 | J35: 50 | Q35: =R35+S35 -> 500 | R35: =$J35*$I35*$F35 -> 500
D36: 3.7 | E36: Participated Travel Transportation - second year | F36: 2 | H36: fly (to and from) per person | I36: 2 | J36: 300 | Q36: =R36+S36 -> 1200 | R36: =$J36*$I36*$F36 -> 1200
D37: 3.8 | E37: Participated Travel Related - second year | F37: 2 | H37: days | I37: 5 | J37: 60 | Q37: =R37+S37 -> 600 | R37: =$J37*$I37*$F37 -> 600
C39: Total Travel & Meeting | K39: =M39+Q39 -> 7960 | M39: =N39+O39 -> 3980 | N39: =SUM(N30:N37) -> 3980 | O39: =SUM(O30:O37) -> 0 | Q39: =R39+S39+T39 -> 3980 | R39: =SUM(R30:R37) -> 3980 | S39: =SUM(S30:S37) -> 0
A41: 52003 | C41: Conferences & Seminars | D41: 4.0
C42: Trainings under project | D42: 4.1 | E42: Conference room rent | H42: room | I42: 1 | J42: 800 | M42: =N42+O42 -> 800 | N42: =J42*I42 -> 800 | Q42: =R42+S42 -> 0
C43: (To be determined) | D43: 4.2 | E43: Stationary | I43: 1 | J43: 200 | M43: =N43+O43 -> 200 | N43: =J43*I43 -> 200 | Q43: =R43+S43 -> 0
D44: 4.3 | E44: Printing materials | I44: 1 | J44: 150 | M44: =N44+O44 -> 150 | N44: =J44*I44 -> 150 | Q44: =R44+S44 -> 0
D45: 4.4 | E45: Trainer | F45: 1 | H45: person | I45: 1 | J45: 500 | M45: =N45+O45 -> 500 | N45: =J45*I45*F45 -> 500 | Q45: =R45+S45 -> 0
C47: Total Training & Conferences & Seminars | K47: =M47+Q47 -> 1650 | M47: =N47+O47 -> 1650 | N47: =SUM(N42:N45) -> 1650 | O47: =SUM(O42:O44) -> 0 | Q47: =R47+S47+T47 -> 0 | R47: =SUM(R42:R45) -> 0 | S47: =SUM(S42:S44) -> 0
C49: Professional Services | D49: 5.0
A50: 53010 | D50: 5.1 | E50: Consultants - Compensation | H50: person | I50: 1 | J50: 500 | M50: =N50+O50 -> 500 | N50: =J50*I50 -> 500 | Q50: =R50+S50 -> 0
A51: 53011 | D51: 5.2 | E51: Consultants - Transportation | H51: fly (to and from) | I51: 1 | J51: 430 | M51: =N51+O51 -> 430 | N51: =J51*I51 -> 430 | Q51: =R51+S51 -> 0
A52: 53012 | D52: 5.3 | E52: Consultants - Related | H52: days | I52: 3 | J52: 60 | M52: =N52+O52 -> 180 | N52: =J52*I52 -> 180 | Q52: =R52+S52 -> 0
A53: 53020 | D53: 5.4 | E53: Audit of donor project | H53: audit | I53: 1 | J53: 2000 | M53: =N53+O53 -> 2000 | N53: =J53*I53 -> 2000 | Q53: =R53+S53 -> 0
A54: 50060 | D54: 5.5 | E54: Program Related Advertising | H54: announcement im newspaper | I54: 1 | J54: 500 | M54: =N54+O54 -> 500 | N54: =J54*I54 -> 500 | Q54: =R54+S54 -> 0
C56: Total Professional Services | K56: =M56+Q56 -> 3610 | M56: =N56+O56 -> 3610 | N56: =SUM(N50:N54) -> 3610 | O56: =SUM(O50:O55) -> 0 | Q56: =R56+S56+T56 -> 0 | R56: =SUM(R50:R54) -> 0 | S56: =SUM(S50:S55) -> 0
C58: Program Support | D58: 6.0
A59: 55012 | D59: 6.1 | E59: Telephone/Fax/E-mail | F59: 0.15 | G59: 0.1 | H59: 1 prog pers per year | I59: 2 | J59: =#REF! ->  | M59: =N59+O59 ->  | N59: =$J59*$I59*F59 ->  | Q59: =R59+S59 ->  | R59: =$J59*$I59*G59 -> 
A60: 55014 | D60: 6.2 | E60: Postage | F60: 0.15 | G60: 0.1 | H60: 1 prog pers per year | I60: 2 | J60: =#REF! ->  | N60: =$J60*$I60*F60 ->  | R60: =$J60*$I60*G60 -> 
A61: 55018 | D61: 6.3 | E61: Stationary & Office Supplies | F61: 0.15 | G61: 0.1 | H61: 1 prog pers per year | I61: 2 | J61: =#REF! ->  | N61: =J61*I61*F61 ->  | R61: =$J61*$I61*G61 -> 
A62: 55022 | D62: 6.4 | E62: Printing (visit card) | F62: 0.15 | G62: 0.1 | H62: 1 prog pers per year | I62: 2 | J62: =#REF! ->  | N62: =J62*I62*F62 ->  | R62: =$J62*$I62*G62 -> 
A63: 55026 | D63: 6.5 | E63: Bankinh Charges | F63: 0.004 | G63: 0.004 | H63: 0,4% from total project cost | J63: 50000 | M63: 200 | N63: =J63*F63 -> 200 | Q63: 0 | R63: 0
A64: 54010 | D64: 6.6 | E64: Office rent | F64: 0.15 | G64: 0.1 | H64: 1 prog pers per year | I64: 2 | J64: =#REF! ->  | N64: =J64*I64*F64 ->  | R64: =$J64*$I64*G64 -> 
A65: 54012, 54015 | D65: 6.7 | E65: Utilities & Repaire | F65: 0.15 | G65: 0.1 | H65: 1 prog pers per year | I65: 2 | J65: =#REF!+#REF! ->  | N65: =J65*I65*F65 ->  | R65: =$J65*$I65*G65 -> 
C67: Total Program Operating | K67: =M67+Q67 ->  | M67: =N67+O67 ->  | N67: =SUM(N58:N66) ->  | O67: =SUM(O58:O66) -> 0 | Q67: =R67+S67+T67 ->  | R67: =SUM(R58:R66) ->  | S67: =SUM(S58:S66) -> 0
C68: TOTAL PROGRAM IMPLEMENTATION | K68: =M68+Q68 ->  | M68: =N68+O68 ->  | N68: =N9+N27+N39+N47+N56+N67 ->  | O68: =O9+O27+O39+O47+O56+O67 -> 0 | Q68: =R68+S68+T68 ->  | R68: =R9+R27+R39+R47+R56+R67 ->  | S68: =S9+S27+S39+S47+S56+S67 -> 0
C70: INDIRECT COSTS
D71: 7.0
A72: 52001.52002 | D72: 7.1 | E72: Travel of Admin Staff | F72: 0.15 | G72: 0.1 | H72: 1 prog pers per year | I72: 2 | J72: =#REF!+#REF! ->  | M72: =N72+O72 ->  | N72: =J72*I72*F72 ->  | Q72: =R72+S72 ->  | R72: =$J72*$I72*G72 -> 
A73: 52010 | D73: 7.2 | E73: Business Meetings | F73: 0.15 | G73: 0.1 | H73: 1 prog pers per year | I73: 2 | J73: =#REF! -> 
A74: 53020 | D74: 7.3 | E74: Annual External Audit | F74: 0.15 | G74: 0.1 | H74: audit | I74: 1 | J74: =#REF! -> 
A75: 51090 | D75: 7.4 | E75: Professional Development | F75: 0.15 | G75: 0.1 | H75: 1 prog pers per year | I75: 2 | J75: =#REF! -> 
A76: 53030 | D76: 7.5 | E76: Legal Services | F76: 0.15 | G76: 0.1 | H76: 1 prog pers per year | I76: 2 | J76: =#REF! -> 
A77: 53040 | D77: 7.6 | E77: Translation | F77: 0.15 | G77: 0.1 | H77: 1 prog pers per year | I77: 2 | J77: =#REF! -> 
A78: 53042 | D78: 7.7 | E78: Annual Report (Communication) | F78: 0.15 | G78: 0.1 | H78: 1 prog pers per year | I78: 2 | J78: =#REF! -> 
A79: 55010 | D79: 7.8 | E79: Staff Recruitment | F79: 0.15 | G79: 0.1 | H79: 1 prog pers per year | I79: 2 | J79: =#REF! -> 
A80: 55012 | D80: 7.9 | E80: Telephone/Fax/E-mail | F80: 0.15 | G80: 0.1 | H80: 1 prog pers per year | I80: 2 | J80: =#REF! -> 
A81: 55014 | D81: 7.10 | E81: Postage | F81: 0.15 | G81: 0.1 | H81: 1 prog pers per year | I81: 2 | J81: =#REF! -> 
A82: 55016 | D82: 7.11 | E82: Local Business Expenses | F82: 0.15 | G82: 0.1 | H82: 1 prog pers per year | I82: 2 | J82: =#REF! -> 
A83: 55018 | D83: 7.12 | E83: Stationary | F83: 0.15 | G83: 0.1 | H83: 1 prog pers per year | I83: 2 | J83: =#REF! -> 
A84: 55022 | D84: 7.13 | E84: Subscription | F84: 0.15 | G84: 0.1 | H84: 1 prog pers per year | I84: 2 | J84: =#REF! -> 
A85: 55024 | D85: 7.14 | E85: Insurance | F85: 0.15 | G85: 0.1 | H85: 1 prog pers per year | I85: 2 | J85: =#REF! -> 
A86: 55030 | D86: 7.15 | E86: EF Network | F86: 0.15 | G86: 0.1 | H86: 1 prog pers per year | I86: 2 | J86: =#REF! -> 
A87: 55034 | D87: 7.16 | E87: Property Tax | F87: 0.15 | G87: 0.1 | H87: 1 prog pers per year | I87: 2 | J87: =#REF! -> 
A88: 55050 | D88: 7.17 | E88: Staff training | F88: 0.15 | G88: 0.1 | H88: 1 prog pers per year | I88: 2 | J88: =#REF! -> 
A89: 54010 | D89: 7.18 | E89: Office rent | F89: 0.15 | G89: 0.1 | H89: 1 prog pers per year | I89: 2 | J89: =#REF! -> 
A90: 54012, 54015 | D90: 7.19 | E90: Utilities & Repaire | F90: 0.15 | G90: 0.1 | H90: 1 prog pers per year | I90: 2 | J90: =#REF!+#REF! -> 
A91: 54022 | D91: 7.20 | E91: Equipment | F91: 0.15 | G91: 0.1 | H91: 1 prog pers per year | I91: 2 | J91: =#REF! -> 
A92: 54024 | D92: 7.21 | E92: Software | F92: 0.15 | G92: 0.1 | H92: 1 prog pers per year | I92: 2 | J92: =#REF! -> 
C94: TOTAL ADMINISTRATIVE COST | K94: =M94+Q94 ->  | M94: =N94+O94 ->  | N94: =SUM(N72:N93) ->  | O94: =SUM(O72:O93) -> 0 | Q94: =R94+S94+T94 ->  | R94: =SUM(R72:R93) ->  | S94: =SUM(S72:S93) -> 0
C96: TOTAL PROJECT COST | K96: =M96+Q96 ->  | M96: =M68+M94 ->  | N96: =N68+N94 ->  | O96: =O68+O94 -> 0 | Q96: =Q68+Q94 ->  | R96: =R68+R94 ->  | S96: =S68+S94 -> 0
E98: Admin ration | K98: =K94/K96 -> 
K100: =K94/K68 -> 

Sheet Program Implementation Detail (hidden)
A1: Office: | B1: EFCA Almaty
A2: Budget Year: | B2: 2008 | H2: Start Date
H3: End Date
A4: Step#1 | B4: Enter Approximate Value of Project including EFCA Contribution (USAID funds) | J4: 80000
A5: Step #2 | B5: Enter Approximate Value of Donor Contribution not included in Annual Budget | J5: 0
A6: Step#3 | B6: Enter Amount of Project to be Covered by EFCA | J6: 0
B7: Grant Amount to be awarded | J7: 30000
B8: Project Amount Minus Grant | J8: =J4-J7 -> 50000
A9: Step #4 (Auto) | B9: Calculation of LOE | J9: =J8/J10 -> 
A10: Step #5 | B10: Enter Total EFCA (KZ or KYR) Budget taking into acc project period | J10: =E95-E19 -> 
A11: Step #6 (Auto) | B11: Calculation of Regional LOE | J11: =J4/(J5+J10) -> 
C13: 2008 Budget
A14: GRANTS | B14: Title | C14: Admin | D14: Program | E14: TOTAL | F14: LOE | G14: Unit | H14: Quantity | I14: Cost/Unit | J14: Total Program Implem | K14: Donor | L14: EFCA | M14: EF Costshare
A15: 50001 | B15: Grants- Public Admin/Policy | C15: =#REF! ->  | D15: =#REF! ->  | E15: =#REF! -> 
A16: 50002 | B16: Grants- Civil Society | C16: =#REF! ->  | D16: =#REF! ->  | E16: =#REF! -> 
A17: 50003 | B17: Grants-Private Enterprise Development | C17: =#REF! ->  | D17: =#REF! ->  | E17: =#REF! -> 
A18: 50050 | B18: Cancell Prior Yr Award | C18: =#REF! ->  | D18: =#REF! ->  | E18: =#REF! -> 
B19: Subtotal Grants | C19: =SUM(G15:G18) -> 0 | D19: =SUM(D15:D18) ->  | E19: =C19+D19 -> 
A21: OPERATING EXPENSES | T21: `
A22: EMPLOYEE SALARIES & BENEFITS
A23: 51001 | B23: SALARIES- EF Expatriates | C23: =#REF! ->  | D23: =#REF! ->  | E23: =#REF! ->  | F23: =$J$9 ->  | J23: =D23*F23 ->  | K23: =J23-M23-L23 ->  | L23: =($J$6/$J$4)*J23 -> 
A24: 51002 | B24: SALARIES - LOCAL STAFF | C24: =#REF! ->  | D24: =#REF! ->  | E24: =C24+D24 ->  | P24: Alm | Q24: Bish | R24: Osh | S24: Dush
B25: Admin Staff | C25: =#REF! ->  | D25: =#REF! ->  | E25: =C25+D25 ->  | F25: =$J$9 ->  | P25: =8370*12 -> 100440 | Q25: =9445*12 -> 113340 | R25: =6820*12 -> 81840 | S25: =8170*12 -> 98040
B26: Program Staff | C26: =#REF! ->  | D26: =#REF! ->  | E26: =C26+D26 ->  | F26: =$J$9 -> 
A27: 51011 | B27: BENEFITS - EF Expatriates | C27: =#REF! ->  | D27: =#REF! ->  | E27: =#REF! ->  | F27: =$J$9 -> 
A28: 51070 | B28: BENEFITS - LOCAL STAFF | C28: =#REF! ->  | D28: =#REF! ->  | E28: =#REF! -> 
B29: Admin Staff | C29: =#REF! ->  | D29: =#REF! ->  | E29: =#REF! ->  | F29: =$J$9 -> 
B30: Program Staff | C30: =#REF! ->  | D30: =#REF! ->  | E30: =#REF! -> 
A31: 51072 | B31: LOCAL STAFF HEALTH INSURANCE | C31: =#REF! ->  | D31: =#REF! ->  | E31: =#REF! -> 
A32: 51090 | B32: PROFESSIONAL DEVELOPMENT | C32: =#REF! ->  | D32: =#REF! ->  | E32: =#REF! -> 
A33: 51091 | B33: RELOCATION | C33: =#REF! ->  | D33: =#REF! ->  | E33: =#REF! -> 
A34: 51092 | B34: HOUSING | C34: =#REF! ->  | D34: =#REF! ->  | E34: =#REF! -> 
A35: 51093 | B35: EDUCATION FOR DEPENDANTS | C35: =#REF! ->  | D35: =#REF! ->  | E35: =#REF! -> 
B36: Subtotal Employee Salary & Benefits | C36: =SUM(C31:C35)+SUM(C27:C28)+SUM(C23:C24) ->  | D36: =SUM(D31:D35)+SUM(D27:D28)+SUM(D23:D24) ->  | E36: =SUM(E31:E35)+SUM(E27:E28)+SUM(E23:E24) ->  | J36: =SUM(J23:J35) ->  | K36: =SUM(K23:K35) ->  | L36: =SUM(L23:L35) ->  | M36: =SUM(M23:M35) -> 0
A38: TRAVEL AND MEETINGS
A39: 52001 | B39: TRAVEL - TRANSPORTATION | C39: =#REF! ->  | D39: =#REF! ->  | E39: =#REF! ->  | F39: =$J$9 ->  | J39: =D39*F39 ->  | K39: =J39-M39-L39 ->  | L39: =($J$6/$J$4)*J39 -> 
A40: 52002 | B40: TRAVEL - RELATED EXPENSES | C40: =#REF! ->  | D40: =#REF! ->  | E40: =#REF! -> 
A41: 52015 | B41: PARTICIPANT TRAVEL | C41: =#REF! ->  | D41: =#REF! ->  | E41: =#REF! -> 
A42: 52016 | B42: PARTICIPANT TRAVEL RELATED | C42: =#REF! ->  | D42: =#REF! ->  | E42: =#REF! -> 
A43: 52003 | B43: CONFERENCES & SEMINARS | C43: =#REF! ->  | D43: =#REF! ->  | E43: =#REF! -> 
A44: 52010 | B44: BUSINESS MEETINGS | C44: =#REF! ->  | D44: =#REF! ->  | E44: =#REF! -> 
B45: Subtotal Travel and Meetings | C45: =SUM(C39:C44) ->  | D45: =SUM(D39:D44) ->  | E45: =C45+D45 ->  | J45: =SUM(J39:J44) ->  | K45: =SUM(K39:K44) ->  | L45: =SUM(L39:L44) ->  | M45: =SUM(M39:M44) -> 0
A47: PROFESSIONAL SERVICES
A48: 53010 | B48: CONSULTANT COMPENSATION | C48: =#REF! ->  | D48: =#REF! ->  | E48: =C48+D48 ->  | F48: =$J$9 ->  | J48: =D48*F48 ->  | K48: =J48-M48-L48 ->  | L48: =($J$6/$J$4)*J48 -> 
A49: 53011 | B49: CONSULTANT TRAVEL TRANS | C49: =#REF! ->  | D49: =#REF! -> 
A50: 53012 | B50: CONSULTANT - TRAVEL RELATED EX | C50: =#REF! ->  | D50: =#REF! -> 
A51: 53013 | B51: CONSULTANT - OTHER EXPENSES | C51: =#REF! ->  | D51: =#REF! -> 
A52: 53020 | B52: ACCOUNTING AND AUDIT (LOCAL AUDIT) | C52: =#REF! ->  | D52: =#REF! -> 
A53: 53025 | B53: COLLATERAL REGISTRATION | C53: =#REF! ->  | D53: =#REF! -> 
A54: 53026 | B54: REPOSSESSION AND RECOVERY | C54: =#REF! ->  | D54: =#REF! -> 
A55: 53030 | B55: LEGAL SERVICES FEES | C55: =#REF! ->  | D55: =#REF! -> 
A56: 53031 | B56: LEGAL - OTHER EXPENSES | C56: =#REF! ->  | D56: =#REF! -> 
A57: 53040 | B57: TRANSLATION | C57: =#REF! ->  | D57: =#REF! -> 
A58: 53042 | B58: DESIGN/PUBLICATION | C58: =#REF! ->  | D58: =#REF! -> 
A59: 53044 | B59: PAYROLL SERVICE | C59: =#REF! ->  | D59: =#REF! -> 
A60: 53046 | B60: HONORARIUM | C60: =#REF! ->  | D60: =#REF! -> 
A61: 53048 | B61: TEMP. OFFICE HELP | C61: =#REF! ->  | D61: =#REF! -> 
A62: 53050 | B62: OTHER SERVICES | C62: =#REF! ->  | D62: =#REF! -> 
A63: 50060 | B63: PROGRAM RELATED ADVERTISING | C63: =#REF! ->  | D63: =#REF! -> 
A64: 55010 | B64: STAFF RECRUITMENT | C64: =#REF! ->  | D64: =#REF! -> 
B65: Subtotal Professional Services | C65: =SUM(C48:C64) ->  | D65: =SUM(D48:D64) ->  | J65: =SUM(J48:J64) ->  | K65: =SUM(K48:K64) ->  | L65: =SUM(L48:L64) ->  | M65: =SUM(M48:M64) -> 0
A67: OFFICE EXPENSES
A68: 55012 | B68: TELEPHONE/FAX/E-MAIL | C68: =#REF! ->  | D68: =#REF! ->  | E68: =#REF! ->  | F68: =$J$9 ->  | J68: =D68*F68 ->  | K68: =J68-M68-L68 ->  | L68: =($J$6/$J$4)*J68 -> 
A69: 55014 | B69: POSTAGE/DELIVERY | C69: =#REF! ->  | D69: =#REF! ->  | E69: =#REF! -> 
A70: 55016 | B70: LOCAL BUSINESS EXPENSE | C70: =#REF! ->  | D70: =#REF! ->  | E70: =#REF! -> 
A71: 55018 | B71: STATIONARY & OFFICE SUPPLIES | C71: =#REF! ->  | D71: =#REF! ->  | E71: =#REF! -> 
A72: 55020 | B72: BOOKS, PERIODICALS AND MAPS | C72: =#REF! ->  | D72: =#REF! ->  | E72: =#REF! -> 
A73: 55022 | B73: PRINTING/REPRODUCTION(OUTSIDE) | C73: =#REF! ->  | D73: =#REF! ->  | E73: =#REF! -> 
A74: 55024 | B74: INSURANCE | C74: =#REF! ->  | D74: =#REF! ->  | E74: =#REF! -> 
A75: 55026 | B75: BANKING CHARGES | C75: =#REF! ->  | D75: =#REF! ->  | E75: =#REF! -> 
A76: 55027 | B76: FOREIGN EXCHANGE ADJUSTMENTS | C76: =#REF! ->  | D76: =#REF! ->  | E76: =#REF! -> 
A77: 55030 | B77: MEMBERSHIP AND DUES | C77: =#REF! ->  | D77: =#REF! ->  | E77: =#REF! -> 
A78: 55034 | B78: TAXES & LICENSES | C78: =#REF! ->  | D78: =#REF! ->  | E78: =#REF! -> 
A79: 55050 | B79: STAFF TRAINING | C79: =#REF! ->  | D79: =#REF! ->  | E79: =#REF! -> 
A80: 57014 | B80: MISCELLANEOUS EXPENSE | C80: =#REF! ->  | D80: =#REF! ->  | E80: =#REF! -> 
B81: Subtotal Office Expenses | C81: =SUM(C68:C80) ->  | D81: =SUM(D68:D80) ->  | E81: =C81+D81 ->  | J81: =SUM(J68:J80) ->  | K81: =SUM(K68:K80) ->  | L81: =SUM(L68:L80) ->  | M81: =SUM(M68:M80) -> 0
A83: OCCUPANCY
A84: 54010 | B84: RENT | C84: =#REF! ->  | D84: =#REF! ->  | E84: =#REF! ->  | F84: =$J$9 ->  | J84: =D84*F84 ->  | K84: =J84-M84-L84 ->  | L84: =($J$6/$J$4)*J84 -> 
A85: 54012 | B85: UTILITIES | C85: =#REF! ->  | D85: =#REF! ->  | E85: =#REF! -> 
A86: 54015 | B86: REPAIRS AND MAINTENANCE | C86: =#REF! ->  | D86: =#REF! ->  | E86: =#REF! -> 
A87: 54020 | B87: RENTAL - F&F AND EQUIPMENT | C87: =#REF! ->  | D87: =#REF! ->  | E87: =#REF! -> 
A88: 54022 | B88: EQUIPMENT PURCHASE | C88: =#REF! ->  | D88: =#REF! ->  | E88: =#REF! -> 
A89: 54024 | B89: SOFTWARE PURCHASE | C89: =#REF! ->  | D89: =#REF! ->  | E89: =#REF! -> 
A90: 54030 | B90: OFFICE RELOCATION COSTS | C90: =#REF! ->  | D90: =#REF! ->  | E90: =#REF! -> 
B91: Subtotal Occupancy | C91: =SUM(C84:C90) ->  | D91: =SUM(D84:D90) ->  | E91: =C91+D91 ->  | J91: =SUM(J84:J90) ->  | K91: =SUM(K84:K90) ->  | L91: =SUM(L84:L90) ->  | M91: =SUM(M84:M90) -> 0
B93: Subtotal Operating Expense | C93: =C91+C81+C65+C45+C36 ->  | D93: =D91+D81+D65+D45+D36 ->  | E93: =C93+D93 ->  | J93: =J91+J81+J65+J45+J36 ->  | K93: =K91+K81+K65+K45+K36 ->  | L93: =L91+L81+L65+L45+L36 ->  | M93: =M91+M81+M65+M45+M36 -> 0
B95: Totals | C95: =C93+C19 ->  | D95: =D93+D19 ->  | E95: =C95+D95 ->  | J95: =J93+J19 ->  | K95: =K93+K19 ->  | L95: =L93+L19 ->  | M95: =M93+M19 -> 0
B97: Totals | C97: 351345.7238 | D97: 1292898.526 | E97: 1644244.25 | J97: 41712.1393 | K97: 31284.10447 | L97: 10428.03482 | M97: 0
E99: =200000/(E97+200000) -> 0.1084455055
J102: =J95+'Administration Detail'!J95+E19*J9 -> 
J105: ='Administration Detail'!J95/'Program Implementation Detail'!J102 -> 

Sheet Administration Detail (hidden)
A1: Office: | B1: EFCA Almaty
A2: Budget Year: | B2: 2008
A4: Step#1 | B4: Enter Approximate Value of Project including EFCA Contribution | J4: ='Program Implementation Detail'!J4 -> 80000
A5: Step #2 | B5: Enter Approximate Value of Donor Contribution not included in Annual Budget | J5: ='Program Implementation Detail'!J5 -> 0
A6: Step#3 | B6: Enter Amount of Project to be Covered by EFCA | J6: ='Program Implementation Detail'!J6 -> 0
B7: Grant Amount to be awarded | J7: ='Program Implementation Detail'!J7 -> 30000
B8: Project Amount Minus Grant | J8: ='Program Implementation Detail'!J8 -> 50000
A9: Step #4 (Auto) | B9: Calculation of LOE | J9: ='Program Implementation Detail'!J9 -> 
A10: Step #5 | B10: Enter Total EFCA Bishkek Budget | J10: ='Program Implementation Detail'!J10 -> 
A11: Step #6 (Auto) | B11: Calculation of Regional LOE | J11: =J4/(J5+J10) -> 
C13: 2008 Budget
A14: GRANTS | B14: Title | C14: Admin | D14: Program | E14: TOTAL | F14: LOE | G14: Unit | H14: Quantity | I14: Cost/Unit | J14: Total Administration | K14: Donor | L14: EFCA | M14: EF Costshare
A15: 50001 | B15: Grants- Public Admin/Policy | C15: ='Program Implementation Detail'!C15 ->  | D15: ='Program Implementation Detail'!D15 ->  | E15: ='Program Implementation Detail'!E15 -> 
A16: 50002 | B16: Grants- Civil Society | C16: ='Program Implementation Detail'!C16 ->  | D16: ='Program Implementation Detail'!D16 ->  | E16: ='Program Implementation Detail'!E16 -> 
A17: 50003 | B17: Grants-Private Enterprise Development | C17: ='Program Implementation Detail'!C17 ->  | D17: ='Program Implementation Detail'!D17 ->  | E17: ='Program Implementation Detail'!E17 -> 
A18: 50050 | B18: Cancell Prior Yr Award | C18: ='Program Implementation Detail'!C18 ->  | D18: ='Program Implementation Detail'!D18 ->  | E18: ='Program Implementation Detail'!E18 -> 
B19: Subtotal Grants | C19: =SUM(C15:C18) ->  | D19: =SUM(D15:D18) ->  | E19: =C19+D19 -> 
A21: OPERATING EXPENSES
A22: EMPLOYEE SALARIES & BENEFITS
A23: 51001 | B23: SALARIES- EF Expatriates | C23: ='Program Implementation Detail'!C23 ->  | D23: ='Program Implementation Detail'!D23 ->  | E23: =C23+D23 ->  | F23: =$J$9 ->  | J23: =C23*F23 ->  | K23: =J23-M23-L23 ->  | L23: =($J$6/$J$4)*J23 -> 
A24: 51002 | B24: SALARIES - LOCAL STAFF | C24: ='Program Implementation Detail'!C24 ->  | D24: ='Program Implementation Detail'!D24 ->  | E24: =C24+D24 ->  | J24: 0 | K24: 0 | L24: 0
B25: Admin Staff | C25: ='Program Implementation Detail'!C25 ->  | D25: ='Program Implementation Detail'!D25 ->  | E25: =C25+D25 ->  | J25: =C25*F25 -> 
B26: Program Staff | C26: ='Program Implementation Detail'!C26 ->  | D26: ='Program Implementation Detail'!D26 ->  | E26: =E24-E25 ->  | J26: =C26*F26 -> 
A27: 51011 | B27: BENEFITS - EF Expatriates | C27: ='Program Implementation Detail'!C27 ->  | D27: ='Program Implementation Detail'!D27 ->  | E27: =C27+D27 ->  | J27: =C27*F27 -> 
A28: 51070 | B28: BENEFITS - LOCAL STAFF | C28: ='Program Implementation Detail'!C28 ->  | D28: ='Program Implementation Detail'!D28 ->  | J28: 0 | K28: 0 | L28: 0
B29: Admin Staff | C29: ='Program Implementation Detail'!C29 ->  | D29: ='Program Implementation Detail'!D29 ->  | J29: =C29*F29 -> 
B30: Program Staff | C30: ='Program Implementation Detail'!C30 ->  | D30: ='Program Implementation Detail'!D30 -> 
A31: 51072 | B31: LOCAL STAFF HEALTH INSURANCE | C31: ='Program Implementation Detail'!C31 ->  | D31: ='Program Implementation Detail'!D31 -> 
A32: 51090 | B32: PROFESSIONAL DEVELOPMENT | C32: ='Program Implementation Detail'!C32 ->  | D32: ='Program Implementation Detail'!D32 -> 
A33: 51091 | B33: RELOCATION | C33: ='Program Implementation Detail'!C33 ->  | D33: ='Program Implementation Detail'!D33 -> 
A34: 51092 | B34: HOUSING | C34: ='Program Implementation Detail'!C34 ->  | D34: ='Program Implementation Detail'!D34 -> 
A35: 51093 | B35: EDUCATION FOR DEPENDANTS | C35: ='Program Implementation Detail'!C35 ->  | D35: ='Program Implementation Detail'!D35 -> 
B36: Subtotal Employee Salary & Benefits | C36: =SUM(C31:C35)+SUM(C27:C28)+SUM(C23:C24) ->  | D36: =SUM(D31:D35)+SUM(D27:D28)+SUM(D23:D24) ->  | E36: =SUM(E31:E35)+SUM(E27:E28)+SUM(E23:E24) ->  | J36: =SUM(J23:J35) ->  | K36: =SUM(K23:K35) ->  | L36: =SUM(L23:L35) ->  | M36: =SUM(M23:M35) -> 0
A38: TRAVEL AND MEETINGS
A39: 52001 | B39: TRAVEL - TRANSPORTATION | C39: ='Program Implementation Detail'!C39 ->  | D39: ='Program Implementation Detail'!D39 ->  | E39: =C39+D39 ->  | F39: =$J$9 ->  | J39: =C39*F39 ->  | K39: =J39-M39-L39 ->  | L39: =($J$6/$J$4)*J39 -> 
A40: 52002 | B40: TRAVEL - RELATED EXPENSES | C40: ='Program Implementation Detail'!C40 ->  | D40: ='Program Implementation Detail'!D40 -> 
A41: 52015 | B41: PARTICIPANT TRAVEL | C41: ='Program Implementation Detail'!C41 ->  | D41: ='Program Implementation Detail'!D41 -> 
A42: 52016 | B42: PARTICIPANT TRAVEL RELATED | C42: ='Program Implementation Detail'!C42 ->  | D42: ='Program Implementation Detail'!D42 -> 
A43: 52003 | B43: CONFERENCES & SEMINARS | C43: ='Program Implementation Detail'!C43 ->  | D43: ='Program Implementation Detail'!D43 -> 
A44: 52010 | B44: BUSINESS MEETINGS | C44: ='Program Implementation Detail'!C44 ->  | D44: ='Program Implementation Detail'!D44 -> 
B45: Subtotal Travel and Meetings | C45: =SUM(C39:C44) ->  | D45: =SUM(D39:D44) ->  | J45: =SUM(J39:J44) ->  | K45: =SUM(K39:K44) ->  | L45: =SUM(L39:L44) ->  | M45: =SUM(M39:M44) -> 0
A47: PROFESSIONAL SERVICES
A48: 53010 | B48: CONSULTANT COMPENSATION | C48: ='Program Implementation Detail'!C48 ->  | D48: ='Program Implementation Detail'!D48 ->  | E48: =C48+D48 ->  | F48: =$J$9 ->  | J48: =C48*F48 ->  | K48: =J48-M48-L48 ->  | L48: =($J$6/$J$4)*J48 -> 
A49: 53011 | B49: CONSULTANT TRAVEL TRANS | C49: ='Program Implementation Detail'!C49 ->  | D49: ='Program Implementation Detail'!D49 -> 
A50: 53012 | B50: CONSULTANT - TRAVEL RELATED EX | C50: ='Program Implementation Detail'!C50 ->  | D50: ='Program Implementation Detail'!D50 -> 
A51: 53013 | B51: CONSULTANT - OTHER EXPENSES | C51: ='Program Implementation Detail'!C51 ->  | D51: ='Program Implementation Detail'!D51 -> 
A52: 53020 | B52: ACCOUNTING AND AUDIT (LOCAL AUDIT) | C52: ='Program Implementation Detail'!C52 ->  | D52: ='Program Implementation Detail'!D52 -> 
A53: 53025 | B53: COLLATERAL REGISTRATION | C53: ='Program Implementation Detail'!C53 ->  | D53: ='Program Implementation Detail'!D53 -> 
A54: 53026 | B54: REPOSSESSION AND RECOVERY | C54: ='Program Implementation Detail'!C54 ->  | D54: ='Program Implementation Detail'!D54 -> 
A55: 53030 | B55: LEGAL SERVICES FEES | C55: ='Program Implementation Detail'!C55 ->  | D55: ='Program Implementation Detail'!D55 -> 
A56: 53031 | B56: LEGAL - OTHER EXPENSES | C56: ='Program Implementation Detail'!C56 ->  | D56: ='Program Implementation Detail'!D56 -> 
A57: 53040 | B57: TRANSLATION | C57: ='Program Implementation Detail'!C57 ->  | D57: ='Program Implementation Detail'!D57 -> 
A58: 53042 | B58: DESIGN/PUBLICATION | C58: ='Program Implementation Detail'!C58 ->  | D58: ='Program Implementation Detail'!D58 -> 
A59: 53044 | B59: PAYROLL SERVICE | C59: ='Program Implementation Detail'!C59 ->  | D59: ='Program Implementation Detail'!D59 -> 
A60: 53046 | B60: HONORARIUM | C60: ='Program Implementation Detail'!C60 ->  | D60: ='Program Implementation Detail'!D60 -> 
A61: 53048 | B61: TEMP. OFFICE HELP | C61: ='Program Implementation Detail'!C61 ->  | D61: ='Program Implementation Detail'!D61 -> 
A62: 53050 | B62: OTHER SERVICES | C62: ='Program Implementation Detail'!C62 ->  | D62: ='Program Implementation Detail'!D62 -> 
A63: 50060 | B63: PROGRAM RELATED ADVERTISING | C63: ='Program Implementation Detail'!C63 ->  | D63: ='Program Implementation Detail'!D63 -> 
A64: 55010 | B64: STAFF RECRUITMENT | C64: ='Program Implementation Detail'!C64 ->  | D64: ='Program Implementation Detail'!D64 -> 
B65: Subtotal Professional Services | C65: =SUM(C48:C64) ->  | D65: =SUM(D48:D64) ->  | J65: =SUM(J48:J64) ->  | K65: =SUM(K48:K64) ->  | L65: =SUM(L48:L64) ->  | M65: =SUM(M48:M64) -> 0
A67: OFFICE EXPENSES
A68: 55012 | B68: TELEPHONE/FAX/E-MAIL | C68: ='Program Implementation Detail'!C68 ->  | D68: ='Program Implementation Detail'!D68 ->  | E68: =C68+D68 ->  | F68: =$J$9 ->  | J68: =C68*F68 ->  | K68: =J68-M68-L68 ->  | L68: =($J$6/$J$4)*J68 -> 
A69: 55014 | B69: POSTAGE/DELIVERY | C69: ='Program Implementation Detail'!C69 ->  | D69: ='Program Implementation Detail'!D69 -> 
A70: 55016 | B70: LOCAL BUSINESS EXPENSE | C70: ='Program Implementation Detail'!C70 ->  | D70: ='Program Implementation Detail'!D70 -> 
A71: 55018 | B71: STATIONARY & OFFICE SUPPLIES | C71: ='Program Implementation Detail'!C71 ->  | D71: ='Program Implementation Detail'!D71 -> 
A72: 55020 | B72: BOOKS, PERIODICALS AND MAPS | C72: ='Program Implementation Detail'!C72 ->  | D72: ='Program Implementation Detail'!D72 -> 
A73: 55022 | B73: PRINTING/REPRODUCTION(OUTSIDE) | C73: ='Program Implementation Detail'!C73 ->  | D73: ='Program Implementation Detail'!D73 -> 
A74: 55024 | B74: INSURANCE | C74: ='Program Implementation Detail'!C74 ->  | D74: ='Program Implementation Detail'!D74 -> 
A75: 55026 | B75: BANKING CHARGES | C75: ='Program Implementation Detail'!C75 ->  | D75: ='Program Implementation Detail'!D75 -> 
A76: 55027 | B76: FOREIGN EXCHANGE ADJUSTMENTS | C76: ='Program Implementation Detail'!C76 ->  | D76: ='Program Implementation Detail'!D76 -> 
A77: 55030 | B77: MEMBERSHIP AND DUES | C77: ='Program Implementation Detail'!C77 ->  | D77: ='Program Implementation Detail'!D77 -> 
A78: 55034 | B78: TAXES & LICENSES | C78: ='Program Implementation Detail'!C78 ->  | D78: ='Program Implementation Detail'!D78 -> 
A79: 55050 | B79: STAFF TRAINING | C79: ='Program Implementation Detail'!C79 ->  | D79: ='Program Implementation Detail'!D79 -> 
A80: 57014 | B80: MISCELLANEOUS EXPENSE | C80: ='Program Implementation Detail'!C80 ->  | D80: ='Program Implementation Detail'!D80 -> 
B81: Subtotal Office Expenses | C81: =SUM(C68:C80) ->  | D81: =SUM(D68:D80) ->  | J81: =SUM(J68:J80) ->  | K81: =SUM(K68:K80) ->  | L81: =SUM(L68:L80) ->  | M81: =SUM(M68:M80) -> 0
A83: OCCUPANCY
A84: 54010 | B84: RENT | C84: ='Program Implementation Detail'!C84 ->  | D84: ='Program Implementation Detail'!D84 ->  | E84: =C84+D84 ->  | F84: =$J$9 ->  | J84: =C84*F84 ->  | K84: =J84-M84-L84 ->  | L84: =($J$6/$J$4)*J84 -> 
A85: 54012 | B85: UTILITIES | C85: ='Program Implementation Detail'!C85 ->  | D85: ='Program Implementation Detail'!D85 -> 
A86: 54015 | B86: REPAIRS AND MAINTENANCE | C86: ='Program Implementation Detail'!C86 ->  | D86: ='Program Implementation Detail'!D86 -> 
A87: 54020 | B87: RENTAL - F&F AND EQUIPMENT | C87: ='Program Implementation Detail'!C87 ->  | D87: ='Program Implementation Detail'!D87 -> 
A88: 54022 | B88: EQUIPMENT PURCHASE | C88: ='Program Implementation Detail'!C88 ->  | D88: ='Program Implementation Detail'!D88 -> 
A89: 54024 | B89: SOFTWARE PURCHASE | C89: ='Program Implementation Detail'!C89 ->  | D89: ='Program Implementation Detail'!D89 -> 
A90: 54030 | B90: OFFICE RELOCATION COSTS | C90: ='Program Implementation Detail'!C90 ->  | D90: ='Program Implementation Detail'!D90 -> 
B91: Subtotal Occupancy | C91: =SUM(C84:C90) ->  | D91: =SUM(D84:D90) ->  | J91: =SUM(J84:J90) ->  | K91: =SUM(K84:K90) ->  | L91: =SUM(L84:L90) ->  | M91: =SUM(M84:M90) -> 0
B93: Subtotal Operating Expense | C93: =C91+C81+C65+C45+C36 ->  | D93: =D91+D81+D65+D45+D36 ->  | E93: =C93+D93 ->  | J93: =J91+J81+J65+J45+J36 ->  | K93: =K91+K81+K65+K45+K36 ->  | L93: =L91+L81+L65+L45+L36 ->  | M93: =M91+M81+M65+M45+M36 -> 0
B95: Totals | C95: =C93+C19 ->  | D95: =D93+D19 ->  | E95: =C95+D95 ->  | J95: =J93+J19 ->  | K95: =K93+K19 ->  | L95: =L93+L19 ->  | M95: =M93+M19 -> 0

Sheet Grant Worksheet (hidden)
B1: # Grants | C1: Average Grant Amt | D1: Total Grant Awards | F1: Estimation based on LOE
A2: Grants- Public Admin/Policy | B2: 0 | C2: 0 | D2: =B2*C2 -> 0 | F2: 0
A3: Grants- Civil Society | D3: =B3*C3 -> 0 | F3: ='Program Implementation Detail'!E19*'Program Implementation Detail'!J9 -> 
A4: Grants-Private Enterprise Development | D4: =B4*C4 -> 0 | F4: ='Program Implementation Detail'!D17/'Program Implementation Detail'!$J$9*100 -> 
F5: =SUM(F2:F4) -> 

Sheet Travel Budget (hidden)
A1: Program Travel & Meetings
A2: Grant Location | B2: #subgrants awarded | C2: Grantees visited/trip/yr | D2: # site visits/yr | E2: # staff/visit | F2: # days/visit | G2: # trips | H2: Transportation Cost | I2: Total annual transportation | J2: Nights of accomodation | K2: Accomodation Cost per nigt | L2: Total annual accomodation | M2: Per diem | N2: Total annual per diem | O2: Total Annual Travel
A3: Site visits per year | B3: 1 | C3: 1 | D3: 3 | E3: 1 | F3: 3 | G3: 4 | H3: 400 | I3: =G3*H3 -> 1600 | J3: 3 | K3: =7000/120 -> 58.33333333 | L3: =E3*J3*K3*G3 -> 700 | M3: =4.5*1168/120 -> 43.8 | N3: =D3*E3*F3*M3 -> 394.2 | O3: =I3+L3+N3 -> 2694.2
A8: Total annual travel costs | B8: =SUM(B3:B7) -> 1 | C8: =SUM(C3:C7) -> 1 | D8: =SUM(D3:D7) -> 3 | G8: =SUM(G3:G7) -> 4 | I8: =SUM(I3:I7) -> 1600 | L8: =SUM(L3:L7) -> 700 | N8: =SUM(N3:N7) -> 394.2 | O8: =SUM(O3:O7) -> 2694.2
